fUSD/lending_fUSD_20240521
["ID","MTS","AMOUNT","RATE_DAILY","PERIOD"]
[327674857,1716306751813,-593.38560207,0.0003315,6]
[327674860,1716306751862,-500.0,0.0003315,6]
[327674861,1716306751909,-500.0,0.0003315,6]
[327674862,1716306751956,-501.03402004,0.0003315,6]
[327674863,1716306752002,-500.0,0.0003315,6]
[327674864,1716306752047,-500.0,0.0003315,6]
[327674865,1716306752094,-500.0,0.0003315,6]
[327674866,1716306752138,-645.52980453,0.0003315,6]
[327674867,1716306752186,-500.0,0.0003315,6]
[327674868,1716306752230,-489.62533963,0.0003315,6]
[327674869,1716306752422,-500.0,0.0003315,6]
[327674870,1716306752467,-515.97,0.0003315,6]
[327674871,1716306752513,-500.0,0.0003315,6]
[327674872,1716306752560,-500.0,0.0003315,6]
[327674873,1716306752610,-569.9,0.0003315,6]
[327674874,1716306752656,-500.0,0.0003315,6]
[327674875,1716306752703,-500.0,0.0003315,6]
[327674876,1716306752749,-500.0,0.0003315,6]
[327674877,1716306752798,-500.0,0.0003315,6]
[327674878,1716306752850,-801.65,0.0003315,6]
[327674879,1716306752897,-510.8954407,0.0003315,6]
[327674880,1716306752943,-500.0,0.0003315,6]
[327674881,1716306752989,-500.0,0.0003315,6]
[327674882,1716306753033,-582.34,0.0003315,6]
[327674883,1716306753078,-500.0,0.0003315,6]
[327674884,1716306753125,-500.0,0.0003315,6]
[327674885,1716306753172,-500.0,0.0003315,6]
[327674886,1716306753217,-623.19,0.0003315,6]
[327674887,1716306753261,-500.0,0.0003315,6]
[327674888,1716306753457,-500.0,0.0003315,6]
[327674889,1716306753505,-500.0,0.0003315,6]
[327674890,1716306753553,-607.89083686,0.0003315,6]
[327674891,1716306753602,-500.0,0.0003315,6]
[327674892,1716306753649,-500.0,0.0003315,6]
[327674893,1716306753708,-309.25,0.0003315,6]
[327674894,1716306753753,-563.39,0.0003315,6]
[327674895,1716306753799,-500.0,0.0003315,6]
[327674896,1716306753844,-500.0,0.0003315,6]
[327674897,1716306753892,-592.21,0.0003315,6]
[327674898,1716306753939,-500.0,0.0003315,6]
[327674899,1716306753986,-569.93,0.0003315,6]
[327674900,1716306754032,-670.31,0.0003315,6]
[327674901,1716306754077,-500.0,0.0003315,6]
[327674902,1716306754123,-500.0,0.0003315,6]
[327674903,1716306754167,-1201.15,0.0003315,6]
[327674904,1716306754214,-500.0,0.0003315,6]
[327674905,1716306754260,-500.0,0.0003315,6]
[327674906,1716306754304,-500.0,0.0003315,6]
[327674907,1716306754349,-2387.81,0.0003315,6]
[327674908,1716306754529,-298.56067862,0.0003315,6]
[327674909,1716306754575,-839.07,0.0003315,6]
[327674910,1716306754621,-500.0,0.0003315,6]
[327674911,1716306754672,-911.11,0.0003315,6]
[327674912,1716306754718,-724.44,0.0003315,6]
[327674913,1716306754764,-500.0,0.0003315,6]
[327674914,1716306754809,-519.36059845,0.0003315,6]
[327674915,1716306754857,-610.82,0.0003315,6]
[327674916,1716306754903,-500.0,0.0003315,6]
[327674917,1716306754949,-500.0,0.0003315,6]
[327674918,1716306754994,-926.41,0.0003315,6]
[327674919,1716306755038,-151.0,0.0003315,7]
[327674920,1716306755084,-500.0,0.0003315,6]
[327674921,1716306755130,-500.0,0.0003315,6]
[327674922,1716306755176,-500.0,0.0003315,6]
[327674923,1716306755220,-500.0,0.0003315,6]
[327674924,1716306755265,-509.29095179,0.0003315,6]
[327674925,1716306755309,-500.0,0.0003315,6]
[327674926,1716306755357,-912.22,0.0003315,6]
[327674927,1716306755541,-500.0,0.0003315,6]
[327674928,1716306755591,-500.0,0.0003315,6]
[327674929,1716306755638,-1057.64,0.0003315,6]
[327674930,1716306755684,-500.0,0.0003315,6]
[327674931,1716306755729,-526.93661225,0.0003315,6]
[327674932,1716306755777,-795.05,0.0003315,6]
[327674933,1716306755826,-500.0,0.0003315,6]
[327674934,1716306755872,-500.0,0.0003315,6]
[327674935,1716306755917,-500.0,0.0003315,6]
[327674936,1716306755964,-500.0,0.0003315,6]
[327674937,1716306756008,-500.0,0.0003315,6]
[327674938,1716306756054,-500.0,0.0003315,6]
[327674939,1716306756103,-500.0,0.0003315,6]
[327674940,1716306756152,-500.0,0.0003315,6]
[327674941,1716306756201,-500.0,0.0003315,6]
[327674942,1716306756249,-500.0,0.0003315,6]
[327674943,1716306756298,-500.0,0.0003315,6]
[327674944,1716306756343,-500.0,0.0003315,6]
[327674945,1716306756391,-500.0,0.0003315,6]
[327674946,1716306756575,-519.99,0.0003315,6]
[327674947,1716306756623,-831.68,0.0003315,6]
[327674948,1716306756673,-500.0,0.0003315,6]
[327674949,1716306756722,-151.0,0.0003315,7]
[327674950,1716306756773,-500.0,0.0003315,6]
[327674951,1716306756823,-500.0,0.0003315,6]
[327674952,1716306756875,-500.0,0.0003315,6]
[327674953,1716306756923,-500.0,0.0003315,6]
[327674954,1716306756971,-500.0,0.0003315,6]
[327674955,1716306757018,-1173.72,0.0003315,6]
[327674956,1716306757064,-500.0,0.0003315,6]
[327674957,1716306757113,-666.61,0.0003315,6]
[327674958,1716306757160,-500.0,0.0003315,6]
[327674959,1716306757208,-500.0,0.0003315,6]
[327674960,1716306757254,-507.15905897,0.0003315,6]
[327674961,1716306757302,-506.96,0.0003315,6]
[327674962,1716306757347,-500.0,0.0003315,6]
[327674963,1716306757395,-500.0,0.0003315,6]
[327674964,1716306757441,-500.0,0.0003315,6]
[327674965,1716306757631,-151.0,0.0003315,7]
[327674966,1716306757680,-750.75,0.0003315,6]
[327674967,1716306757729,-1036.16,0.0003315,6]
[327674968,1716306757779,-1158.43,0.0003315,6]
[327674969,1716306757828,-500.0,0.0003315,6]
[327674970,1716306757876,-594.64,0.0003315,6]
[327674971,1716306757923,-500.0,0.0003315,6]
[327674972,1716306757972,-500.0,0.0003315,6]
[327674973,1716306758020,-1221.19,0.0003315,6]
[327674974,1716306758069,-151.0,0.0003315,7]
[327674975,1716306758116,-530.74238284,0.0003315,6]
[327674976,1716306758163,-500.0,0.0003315,6]
[327674977,1716306758210,-691.21,0.0003315,6]
[327674978,1716306758257,-500.0,0.0003315,6]
[327674979,1716306758305,-803.25,0.0003315,6]
[327674980,1716306758355,-500.0,0.0003315,6]
[327674981,1716306758400,-500.0,0.0003315,6]
[327674982,1716306758445,-151.0,0.0003315,7]
[327674983,1716306758490,-500.0,0.0003315,6]
[327674984,1716306758700,-151.0,0.0003315,7]
[327674985,1716306758751,-500.0,0.0003315,6]
[327674986,1716306758798,-500.0,0.0003315,6]
[327674987,1716306758845,-500.0,0.0003315,6]
[327674988,1716306758893,-151.0,0.0003315,7]
[327674989,1716306758938,-500.0,0.0003315,6]
[327674990,1716306758986,-984.63,0.0003315,6]
[327674991,1716306759034,-855.33,0.0003315,6]
[327674992,1716306759084,-500.0,0.0003315,6]
[327674993,1716306759132,-500.0,0.0003315,6]
[327674994,1716306759182,-500.0,0.0003315,6]
[327674995,1716306759233,-500.0,0.0003315,6]
[327674996,1716306759281,-759.93,0.0003315,6]
[327674997,1716306759331,-151.0,0.0003315,7]
[327674998,1716306759381,-500.0,0.0003315,6]
[327674999,1716306759427,-513.6,0.0003315,6]
[327675000,1716306759477,-500.0,0.0003315,6]
[327675001,1716306759526,-1876.17,0.0003315,6]
[327675002,1716306759583,-523.9,0.0003315,6]
[327675003,1716306759633,-500.0,0.0003315,6]
[327675004,1716306759827,-500.0,0.0003315,6]
[327675005,1716306759875,-500.0,0.0003315,6]
[327675006,1716306759927,-500.0,0.0003315,6]
[327675007,1716306759973,-875.38,0.0003315,6]
[327675008,1716306760020,-822.46,0.0003315,6]
[327675009,1716306760068,-500.0,0.0003315,6]
[327675010,1716306760119,-1669.07,0.0003315,6]
[327675011,1716306760166,-525.71,0.0003315,6]
[327675012,1716306760209,-500.0,0.0003315,6]
[327675013,1716306760254,-500.0,0.0003315,6]
[327675014,1716306760300,-757.55,0.0003315,6]
[327675015,1716306760347,-500.0,0.0003315,6]
[327675016,1716306760410,-500.0,0.0003315,6]
[327675017,1716306760466,-500.0,0.0003315,6]
[327675018,1716306760520,-500.0,0.0003315,6]
[327675019,1716306760571,-525.59602622,0.0003315,6]
[327675020,1716306760625,-500.0,0.0003315,6]
[327675021,1716306760677,-810.69,0.0003315,6]
[327675022,1716306760726,-500.0,0.0003315,6]
[327675023,1716306760966,-500.0,0.0003315,6]
[327675024,1716306761019,-500.0,0.0003315,6]
[327675025,1716306761071,-500.0,0.0003315,6]
[327675026,1716306761122,-500.0,0.0003315,6]
[327675027,1716306761171,-1367.3,0.0003315,6]
[327675028,1716306761218,-500.0,0.0003315,6]
[327675029,1716306761263,-1227.41,0.0003315,6]
[327675030,1716306761310,-755.33,0.0003315,6]
[327675031,1716306761360,-500.0,0.0003315,6]
[327675032,1716306761408,-515.05639702,0.0003315,6]
[327675033,1716306761456,-532.76718752,0.0003315,6]
[327675034,1716306761506,-500.0,0.0003315,6]
[327675035,1716306761558,-500.0,0.0003315,6]
[327675036,1716306761611,-500.0,0.0003315,6]
[327675037,1716306761666,-786.89,0.0003315,6]
[327675038,1716306761715,-500.0,0.0003315,6]
[327675039,1716306761767,-500.0,0.0003315,6]
[327675040,1716306761814,-500.0,0.0003315,6]
[327675041,1716306761863,-827.78,0.0003315,6]
[327675042,1716306762070,-500.0,0.0003315,6]
[327675043,1716306762119,-500.0,0.0003315,6]
[327675044,1716306762167,-1017.63,0.0003315,6]
[327675045,1716306762213,-715.82,0.0003315,6]
[327675046,1716306762259,-511.28184468,0.0003315,6]
[327675047,1716306762304,-500.0,0.0003315,6]
[327675048,1716306762348,-500.0,0.0003315,6]
[327675049,1716306762418,-1874.78,0.0003315,6]
[327675050,1716306762476,-500.0,0.0003315,6]
[327675051,1716306762530,-500.0,0.0003315,6]
[327675052,1716306762582,-1299.22,0.0003315,6]
[327675053,1716306762631,-1074.35,0.0003315,6]
[327675054,1716306762679,-516.00864902,0.0003315,6]
[327675055,1716306762730,-500.0,0.0003315,6]
[327675056,1716306762780,-778.39,0.0003315,6]
[327675057,1716306762829,-500.0,0.0003315,6]
[327675058,1716306762876,-500.0,0.0003315,6]
[327675059,1716306762922,-500.0,0.0003315,6]
[327675060,1716306762967,-500.0,0.0003315,6]
[327675061,1716306763244,-500.0,0.0003315,6]
[327675062,1716306763290,-628.83085027,0.0003315,6]
[327675063,1716306763342,-500.0,0.0003315,6]
[327675064,1716306763387,-860.67,0.0003315,6]
[327675065,1716306763434,-2156.48,0.0003315,6]
[327675066,1716306763477,-731.01,0.0003315,6]
[327675067,1716306763522,-500.0,0.0003315,6]
[327675068,1716306763569,-153.20639748,0.0003315,6]
[327675069,1716306763617,-500.0,0.0003315,6]
[327675070,1716306763667,-775.91,0.0003315,6]
[327675071,1716306763717,-500.0,0.0003315,6]
[327675072,1716306763769,-500.0,0.0003315,6]
[327675073,1716306763825,-500.0,0.0003315,6]
[327675074,1716306763877,-537.19842036,0.0003315,6]
[327675075,1716306763923,-1359.54,0.0003315,6]
[327675076,1716306763970,-500.0,0.0003315,6]
[327675077,1716306764016,-500.0,0.0003315,6]
[327675078,1716306764063,-500.0,0.0003315,6]
[327675079,1716306764111,-500.0,0.0003315,6]
[327675080,1716306764286,-500.0,0.0003315,6]
[327675081,1716306764333,-1041.81,0.0003315,6]
[327675082,1716306764378,-500.0,0.0003315,6]
[327675083,1716306764423,-518.27915712,0.0003315,6]
[327675084,1716306764469,-500.0,0.0003315,6]
[327675085,1716306764514,-500.0,0.0003315,6]
[327675086,1716306764562,-1406.58,0.0003315,6]
[327675087,1716306764610,-500.0,0.0003315,6]
[327675088,1716306764662,-856.64,0.0003315,6]
[327675089,1716306764709,-500.0,0.0003315,6]
[327675090,1716306764756,-1955.39,0.0003315,6]
[327675091,1716306764803,-500.0,0.0003315,6]
[327675092,1716306764849,-857.78,0.0003315,6]
[327675093,1716306764897,-500.0,0.0003315,6]
[327675094,1716306764945,-163.328042,0.0003315,7]
[327675095,1716306764993,-1646.88,0.0003315,6]
[327675096,1716306765040,-500.0,0.0003315,6]
[327675097,1716306765087,-1340.95,0.0003315,6]
[327675098,1716306765132,-1704.46,0.0003315,6]
[327675099,1716306765180,-500.0,0.0003315,6]
[327675100,1716306765364,-500.0,0.0003315,6]
[327675101,1716306765410,-500.0,0.0003315,6]
[327675102,1716306765455,-185.34693271,0.0003315,6]
[327675103,1716306765500,-151.0,0.0003315,7]
[327675104,1716306765546,-500.0,0.0003315,6]
[327675105,1716306765591,-500.0,0.0003315,6]
[327675106,1716306765638,-500.0,0.0003315,6]
[327675107,1716306765683,-500.0,0.0003315,6]
[327675108,1716306765728,-598.5,0.0003315,6]
[327675109,1716306765775,-500.0,0.0003315,6]
[327675110,1716306765821,-500.0,0.0003315,6]
[327675111,1716306765867,-1012.16,0.0003315,6]
[327675112,1716306765911,-500.0,0.0003315,6]
[327675113,1716306765955,-529.23589003,0.0003315,6]
[327675114,1716306766000,-816.17,0.0003315,6]
[327675115,1716306766045,-500.0,0.0003315,6]
[327675116,1716306766091,-500.0,0.0003315,6]
[327675117,1716306766137,-500.0,0.0003315,6]
[327675118,1716306766182,-500.0,0.0003315,6]
[327675119,1716306766364,-500.0,0.0003315,6]
[327675120,1716306766409,-739.99,0.0003315,6]
[327675121,1716306766454,-500.0,0.0003315,6]
[327675122,1716306766500,-1058.11,0.0003315,6]
[327675123,1716306766546,-500.0,0.0003315,6]
[327675124,1716306766590,-500.0,0.0003315,6]
[327675125,1716306766636,-900.18,0.0003315,6]
[327675126,1716306766687,-355.28,0.0003315,6]
[327675127,1716306766733,-500.0,0.0003315,6]
[327675128,1716306766781,-1061.36,0.0003315,6]
[327675129,1716306766829,-514.55084908,0.0003315,6]
[327675130,1716306766875,-989.02,0.0003315,6]
[327675131,1716306766920,-500.0,0.0003315,6]
[327675132,1716306766965,-500.0,0.0003315,6]
[327675133,1716306767010,-151.0,0.0003315,7]
[327675134,1716306767055,-150.0,0.0003315,6]
[327675135,1716306767099,-1192.84,0.0003315,6]
[327675136,1716306767144,-500.0,0.0003315,6]
[327675137,1716306767187,-500.0,0.0003315,6]
[327675138,1716306767359,-500.0,0.0003315,6]
[327675139,1716306767404,-500.0,0.0003315,6]
[327675140,1716306767450,-500.0,0.0003315,6]
[327675141,1716306767496,-1300.07,0.0003315,6]
[327675142,1716306767540,-500.0,0.0003315,6]
[327675143,1716306767586,-606.4,0.0003315,6]
[327675144,1716306767630,-500.0,0.0003315,6]
[327675145,1716306767675,-500.0,0.0003315,6]
[327675146,1716306767722,-151.0,0.0003315,7]
[327675147,1716306767769,-500.0,0.0003315,6]
[327675148,1716306767813,-823.81,0.0003315,6]
[327675149,1716306767862,-500.0,0.0003315,6]
[327675150,1716306767910,-518.69,0.0003315,6]
[327675151,1716306767955,-500.0,0.0003315,6]
[327675152,1716306767998,-524.20972371,0.0003315,6]
[327675153,1716306768041,-500.0,0.0003315,6]
[327675154,1716306768085,-500.0,0.0003315,6]
[327675155,1716306768126,-500.0,0.0003315,6]
[327675156,1716306768170,-786.07,0.0003315,6]
[327675157,1716306768360,-500.0,0.0003315,6]
[327675158,1716306768405,-500.0,0.0003315,6]
[327675159,1716306768449,-500.0,0.0003315,6]
[327675160,1716306768494,-500.0,0.0003315,6]
[327675161,1716306768539,-151.0,0.0003315,7]
[327675162,1716306768585,-1668.67,0.0003315,6]
[327675163,1716306768629,-500.0,0.0003315,6]
[327675164,1716306768674,-527.97551455,0.0003315,6]
[327675165,1716306768720,-151.0,0.0003315,7]
[327675166,1716306768768,-500.0,0.0003315,6]
[327675167,1716306768813,-500.0,0.0003315,6]
[327675168,1716306768861,-151.0,0.0003315,7]
[327675169,1716306768906,-151.0,0.0003315,7]
[327675170,1716306768951,-1156.83,0.0003315,6]
[327675171,1716306768997,-500.0,0.0003315,6]
[327675172,1716306769041,-500.0,0.0003315,6]
[327675173,1716306769084,-1323.65,0.0003315,6]
[327675174,1716306769127,-505.29169157,0.0003315,6]
[327675175,1716306769170,-500.0,0.0003315,6]
[327675176,1716306769370,-500.0,0.0003315,6]
[327675177,1716306769414,-856.99,0.0003315,6]
[327675178,1716306769457,-500.0,0.0003315,6]
[327675179,1716306769499,-192.68396042,0.0003315,6]
[327675180,1716306769544,-151.0,0.0003315,7]
[327675181,1716306769587,-521.36,0.0003315,6]
[327675182,1716306769631,-500.0,0.0003315,6]
[327675183,1716306769682,-500.0,0.0003315,6]
[327675184,1716306769727,-749.19,0.0003315,6]
[327675185,1716306769771,-293.43920669,0.0003315,6]
[327675186,1716306769816,-500.0,0.0003315,6]
[327675187,1716306769863,-500.0,0.0003315,6]
[327675188,1716306769908,-500.0,0.0003315,6]
[327675189,1716306769951,-151.0,0.0003315,7]
[327675190,1716306769995,-684.93,0.0003315,6]
[327675191,1716306770039,-500.0,0.0003315,6]
[327675192,1716306770086,-777.44,0.0003315,6]
[327675193,1716306770130,-151.125235,0.0003315,7]
[327675194,1716306770174,-524.17942396,0.0003315,6]
[327675195,1716306770221,-1315.38,0.0003315,6]
[327675196,1716306770414,-1130.13,0.0003315,6]
[327675197,1716306770460,-500.0,0.0003315,6]
[327675198,1716306770507,-155.239839,0.0003315,7]
[327675199,1716306770553,-669.95,0.0003315,6]
[327675200,1716306770600,-1110.88,0.0003315,6]
[327675201,1716306770645,-500.0,0.0003315,6]
[327675202,1716306770694,-151.0,0.0003315,7]
[327675203,1716306770740,-529.40948942,0.0003315,6]
[327675204,1716306770785,-523.6491097,0.0003315,6]
[327675205,1716306770832,-974.25,0.0003315,6]
[327675206,1716306770876,-500.0,0.0003315,6]
[327675207,1716306770921,-509.85,0.0003315,6]
[327675208,1716306770965,-500.0,0.0003315,6]
[327675209,1716306771011,-553.64,0.0003315,6]
[327675210,1716306771056,-151.0,0.0003315,7]
[327675211,1716306771100,-500.0,0.0003315,6]
[327675212,1716306771144,-500.0,0.0003315,6]
[327675213,1716306771188,-568.11,0.0003315,6]
[327675214,1716306771230,-509.03,0.0003315,6]
[327675215,1716306771410,-1297.57,0.0003315,6]
[327675216,1716306771456,-1254.86,0.0003315,6]
[327675217,1716306771498,-500.0,0.0003315,6]
[327675218,1716306771543,-541.12,0.0003315,6]
[327675219,1716306771588,-998.43,0.0003315,6]
[327675220,1716306771633,-500.0,0.0003315,6]
[327675221,1716306771677,-500.0,0.0003315,6]
[327675222,1716306771723,-550.12,0.0003315,6]
[327675223,1716306771770,-513.85,0.0003315,6]
[327675224,1716306771814,-680.66,0.0003315,6]
[327675225,1716306771858,-500.0,0.0003315,6]
[327675226,1716306771903,-500.0,0.0003315,6]
[327675227,1716306771949,-517.6943416,0.0003315,6]
[327675228,1716306771995,-688.39,0.0003315,6]
[327675229,1716306772040,-500.0,0.0003315,6]
[327675230,1716306772090,-500.0,0.0003315,6]
[327675231,1716306772135,-500.0,0.0003315,6]
[327675232,1716306772184,-500.0,0.0003315,6]
[327675233,1716306772227,-513.02047332,0.0003315,6]
[327675234,1716306772404,-151.0,0.0003315,7]
[327675235,1716306772449,-500.0,0.0003315,6]
[327675236,1716306772493,-1468.86,0.0003315,6]
[327675237,1716306772539,-500.0,0.0003315,6]
[327675238,1716306772586,-1717.59,0.0003315,6]
[327675239,1716306772630,-500.0,0.0003315,6]
[327675240,1716306772681,-150.0,0.0003315,6]
[327675241,1716306772727,-1454.47,0.0003315,6]
[327675242,1716306772776,-522.43748398,0.0003315,6]
[327675243,1716306772820,-634.17,0.0003315,6]
[327675244,1716306772867,-500.0,0.0003315,6]
[327675245,1716306772910,-151.0,0.0003315,7]
[327675246,1716306772956,-500.0,0.0003315,6]
[327675247,1716306773003,-500.0,0.0003315,6]
[327675248,1716306773049,-500.0,0.0003315,6]
[327675249,1716306773092,-565.2225568,0.0003315,6]
[327675250,1716306773136,-1271.59,0.0003315,6]
[327675251,1716306773183,-1288.79,0.0003315,6]
[327675252,1716306773227,-465.0,0.0003315,6]
[327675253,1716306773409,-532.49038311,0.0003315,6]
[327675254,1716306773455,-544.68,0.0003315,6]
[327675255,1716306773499,-512.95303001,0.0003315,6]
[327675256,1716306773545,-1063.58,0.0003315,6]
[327675257,1716306773591,-500.0,0.0003315,6]
[327675258,1716306773635,-630.23,0.0003315,6]
[327675259,1716306773680,-1185.19,0.0003315,6]
[327675260,1716306773725,-151.0,0.0003315,7]
[327675261,1716306773773,-523.15225968,0.0003315,6]
[327675262,1716306773819,-500.0,0.0003315,6]
[327675263,1716306773869,-500.0,0.0003315,6]
[327675264,1716306773917,-535.42,0.0003315,6]
[327675265,1716306773961,-513.81382904,0.0003315,6]
[327675266,1716306774007,-500.0,0.0003315,6]
[327675267,1716306774052,-500.0,0.0003315,6]
[327675268,1716306774099,-500.0,0.0003315,6]
[327675269,1716306774144,-500.0,0.0003315,6]
[327675270,1716306774191,-500.0,0.0003315,6]
[327675271,1716306774237,-779.87,0.0003315,6]
[327675272,1716306774437,-500.0,0.0003315,6]
[327675273,1716306774485,-953.08,0.0003315,6]
[327675274,1716306774533,-500.0,0.0003315,6]
[327675275,1716306774584,-728.15,0.0003315,6]
[327675276,1716306774634,-500.0,0.0003315,6]
[327675277,1716306774684,-151.0,0.0003315,7]
[327675278,1716306774730,-528.57736577,0.0003315,6]
[327675279,1716306774780,-2044.66,0.0003315,6]
[327675280,1716306774827,-500.0,0.0003315,6]
[327675281,1716306774876,-500.0,0.0003315,6]
[327675282,1716306774921,-500.0,0.0003315,6]
[327675283,1716306774967,-855.84,0.0003315,6]
[327675284,1716306775012,-500.0,0.0003315,6]
[327675285,1716306775061,-565.09,0.0003315,6]
[327675286,1716306775107,-500.0,0.0003315,6]
[327675287,1716306775153,-502.72320935,0.0003315,6]
[327675288,1716306775204,-500.0,0.0003315,6]
[327675289,1716306775253,-1058.05,0.0003315,6]
[327675290,1716306775300,-845.34,0.0003315,6]
[327675291,1716306775585,-281.635397,0.0003315,7]
[327675292,1716306775863,-500.0,0.0003315,6]
[327675293,1716306776043,-500.0,0.0003315,6]
[327675294,1716306776099,-10292.08,0.0003315,6]
[327675295,1716306776146,-500.0,0.0003315,6]
[327675296,1716306776191,-500.0,0.0003315,6]
[327675297,1716306776238,-500.0,0.0003315,6]
[327675298,1716306776286,-500.0,0.0003315,6]
[327675299,1716306776331,-560.54,0.0003315,6]
[327675300,1716306776382,-500.0,0.0003315,6]
[327675301,1716306776430,-500.0,0.0003315,6]
[327675302,1716306776481,-500.0,0.0003315,6]
[327675303,1716306776529,-1215.24,0.0003315,6]
[327675304,1716306776576,-552.84,0.0003315,6]
[327675305,1716306776627,-151.0,0.0003315,7]
[327675306,1716306776681,-665.67,0.0003315,6]
[327675307,1716306776728,-1140.69,0.0003315,6]
[327675308,1716306776777,-500.0,0.0003315,6]
[327675309,1716306776824,-500.0,0.0003315,6]
[327675310,1716306776872,-1288.23,0.0003315,6]
[327675311,1716306777075,-516.88840156,0.0003315,6]
[327675312,1716306777338,-151.0,0.0003315,7]
[327675313,1716306777384,-500.0,0.0003315,6]
[327675314,1716306777430,-151.0,0.0003315,7]
[327675315,1716306777476,-500.0,0.0003315,6]
[327675316,1716306777521,-500.0,0.0003315,6]
[327675317,1716306777565,-1047.91,0.0003315,6]
[327675318,1716306777609,-605.28273932,0.0003315,6]
[327675319,1716306777654,-44883.72,0.0003315,6]
[327675320,1716306777702,-734.44,0.0003315,6]
[327675321,1716306777748,-538.99238335,0.0003315,6]
[327675322,1716306777793,-151.0,0.0003315,7]
[327675323,1716306777840,-706.72,0.0003315,6]
[327675324,1716306777884,-151.0,0.0003315,7]
[327675325,1716306777928,-1186.3,0.0003315,6]
[327675326,1716306777973,-6657.57,0.0003315,6]
[327675327,1716306778018,-500.0,0.0003315,6]
[327675328,1716306778062,-500.0,0.0003315,6]
[327675329,1716306778109,-500.0,0.0003315,6]
[327675330,1716306779534,-524.27554708,0.0003315,6]
[327675331,1716306779611,-151.0,0.0003315,7]
[327675332,1716306779667,-151.0,0.0003315,7]
[327675333,1716306779718,-500.0,0.0003315,6]
[327675334,1716306779766,-500.0,0.0003315,6]
[327675335,1716306779812,-596.46,0.0003315,6]
[327675336,1716306779858,-937.71,0.0003315,6]
[327675337,1716306779903,-1331.56,0.0003315,6]
[327675338,1716306779949,-613.79,0.0003315,6]
[327675339,1716306779996,-1212.24,0.0003315,6]
[327675340,1716306780042,-500.0,0.0003315,6]
[327675341,1716306780090,-500.0,0.0003315,6]
[327675342,1716306780136,-278.43435508,0.0003315,6]
[327675343,1716306780184,-151.0,0.0003315,7]
[327675344,1716306780231,-151.0,0.0003315,7]
[327675345,1716306780277,-1689.3,0.0003315,6]
[327675346,1716306780321,-500.0,0.0003315,6]
[327675347,1716306780373,-314.00074925,0.0003315,6]
[327675348,1716306780420,-162.80168604,0.0003315,6]
[327675349,1716306780601,-500.0,0.0003315,6]
[327675350,1716306780654,-1834.39,0.0003315,6]
[327675351,1716306780706,-500.0,0.0003315,6]
[327675352,1716306780756,-1474.7,0.0003315,6]
[327675353,1716306780803,-2214.73,0.0003315,6]
[327675354,1716306780865,-500.0,0.0003315,6]
[327675355,1716306780912,-1732.89,0.0003315,6]
[327675356,1716306780958,-253.33191806,0.0003315,6]
[327675357,1716306781004,-500.0,0.0003315,6]
[327675358,1716306781050,-500.0,0.0003315,6]